bitfinex-derivatives/quotes_SOLF0:USTF0_20251211
["timestamp","ask_amount","ask_price","bid_price","bid_amount"]
[1765468500790,6.8644,131.1,131.09,3.19877396]
[1765468501093,6.8644,131.1,131.09,0.04877396]
[1765468503891,6.8658,131.08,131.04,3.15]
[1765468504094,64.82,131.09,131.04,3.15]
[1765468504289,71.685,131.09,131.06,3.15]
[1765468504889,71.73673439,131.09,131.06,3.20321828]
[1765468506293,71.73673439,131.09,131.06,0.05321828]
[1765468506294,64.87173439,131.09,131.06,0.05321828]
[1765468506597,171.66303439,131.09,131.06,0.05321828]
[1765468506984,6.8654,131.08,131.06,3.20321828]
[1765468507393,64.87173439,131.09,131.06,0.05321828]
[1765468508497,6.866,131.07,131.06,0.05321828]
[1765468510999,0.05173439,131.09,131.06,4.72321828]
[1765468511196,0.05173439,131.09,131.08,6.40768907]
[1765468512588,0.05173439,131.09,131.07,3.25768907]
[1765468512791,6.91663439,131.09,131.06,6.46090735]
[1765468513001,6.91663439,131.09,131.07,3.17]
[1765468513798,0.05173439,131.09,131.07,3.17]
[1765468514501,0.05173439,131.09,131.08,6.42768907]
[1765468515293,0.05173439,131.09,131.08,3.17]
[1765468515896,6.8633,131.12,131.08,3.17]
[1765468516096,6.8633,131.12,131.1,3.17]
[1765468516496,6.8628,131.14,131.1,3.17]
[1765468517000,0.05717504,131.13,131.11,3.22540473]
[1765468517606,3.25768907,131.2,131.12,3.17]
[1765468517809,109.96088907,131.2,131.15,3.25768907]
[1765468518003,64.84,131.21,131.17,3.25768907]
[1765468518307,3.25768907,131.24,131.19,6.42768907]
[1765468518609,6.8585,131.22,131.19,6.42768907]
[1765468518806,6.8585,131.22,131.2,0.05167069]
[1765468519507,10.11618907,131.22,131.2,0.05167069]
[1765468519904,6.8612,131.17,131.14,6.60768907]
[1765468520300,6.8612,131.17,131.15,3.35]
[1765468520495,6.8601,131.19,131.15,3.35]
[1765468521010,0.05133032,131.18,131.16,0.05692304]
[1765468521595,6.91163032,131.18,131.16,0.05692304]
[1765468524124,6.91163032,131.18,131.16,3.40692304]
[1765468524915,6.91163032,131.18,131.16,0.05692304]
[1765468528629,71.71163032,131.18,131.16,0.05692304]
[1765468529721,6.91163032,131.18,131.16,3.40692304]
[1765468530721,6.91163032,131.18,131.16,0.05692304]
[1765468532422,0.05133032,131.18,131.16,3.40692304]
[1765468533625,6.91163032,131.18,131.16,0.05692304]
[1765468534418,64.8,131.17,131.16,0.05692304]
[1765468536131,71.6607,131.17,131.16,0.05692304]
[1765468537529,64.8,131.17,131.16,0.05692304]
[1765468537730,0.05133032,131.18,131.16,3.40692304]
[1765468540327,0.05133032,131.18,131.16,0.05692304]
[1765468540727,6.8607,131.17,131.16,0.05692304]
[1765468543834,6.91153032,131.18,131.16,3.40692304]
[1765468544541,0.05133032,131.18,131.16,3.40692304]
[1765468545829,0.05133032,131.18,131.16,0.05692304]
[1765468546136,0.05133032,131.18,131.16,3.40692304]
[1765468547238,6.91153032,131.18,131.16,3.40692304]
[1765468547832,0.05133032,131.18,131.16,3.40692304]
[1765468548239,64.8,131.22,131.16,4.92692304]
[1765468548532,64.8,131.22,131.17,3.35]
[1765468548731,64.8,131.22,131.19,3.2]
[1765468549340,64.84945599,131.22,131.19,3.25442854]
[1765468550934,6.8587,131.21,131.19,3.25442854]
[1765468551128,64.84945599,131.22,131.19,3.25442854]
[1765468551741,0.04945599,131.22,131.19,3.25442854]
[1765468553839,64.78,131.26,131.19,3.25442854]
[1765468554841,0.05722316,131.24,131.19,3.25442854]
[1765468555042,0.05722316,131.24,131.2,3.2]
[1765468555240,78.4855,131.33,131.2,3.2]
[1765468555434,6.8556,131.27,131.23,3.2]
[1765468556140,6.8546,131.29,131.24,3.2]
[1765468556335,0.04821034,131.28,131.26,3.2]
[1765468556537,0.04821034,131.28,131.26,3.25199479]
[1765468557345,0.04821034,131.28,131.26,0.05199479]
[1765468557847,6.90331034,131.28,131.26,0.05199479]
[1765468558147,71.68331034,131.28,131.26,0.05199479]
[1765468560449,71.68331034,131.28,131.26,3.25199479]
[1765468560747,64.82821034,131.28,131.26,3.25199479]
[1765468561951,64.82821034,131.28,131.26,0.05199479]
[1765468562847,71.68331034,131.28,131.26,3.25199479]
[1765468563047,64.82821034,131.28,131.26,3.25199479]
[1765468563641,7.74165484,131.34,131.26,3.25199479]
[1765468563847,171.3347,131.36,131.27,3.2]
[1765468564755,64.76,131.36,131.3,3.25341933]
[1765468565446,106.5178,131.43,131.31,3.2]
[1765468565644,7.06307339,131.45,131.35,3.25294475]
[1765468565645,4.29695797,131.41,131.35,3.25294475]
[1765468566049,4.29695797,131.41,131.36,3.2]
[1765468566248,4.29695797,131.41,131.36,109.7688]
[1765468566454,4.29695797,131.41,131.37,3.2]
[1765468566656,4.29695797,131.41,131.38,0.05057147]
[1765468567159,11.14565797,131.41,131.38,0.05057147]
[1765468567454,7.74165484,131.4,131.38,0.05057147]
[1765468567659,114.28065484,131.4,131.31,67.96]
[1765468568156,6.8492,131.39,131.32,3.2]
[1765468568462,69.03695797,131.41,131.35,3.2]
[1765468568661,0.05204936,131.37,131.35,3.2]
[1765468569063,0.05204936,131.37,131.35,3.25449104]
[1765468569866,0.05204936,131.37,131.35,0.05449104]
[1765468570454,0.05204936,131.37,131.35,3.25449104]
[1765468570963,114.25695484,131.43,131.35,3.25449104]
[1765468570964,64.72,131.45,131.38,6.8493]
[1765468571163,71.5651,131.47,131.38,10.0493]
[1765468571456,171.2034,131.47,131.38,3.2]
[1765468571679,118.58937561,131.46,131.36,10.0506]
[1765468571963,118.58937561,131.46,131.4,0.04871545]
[1765468572653,6.8464,131.45,131.4,0.04871545]
[1765468573364,76.81907561,131.47,131.4,0.04871545]
[1765468573552,12.09907561,131.47,131.4,0.04871545]
[1765468573749,64.72,131.46,131.4,0.04871545]
[1765468573955,6.8464,131.45,131.4,0.04871545]
[1765468574255,171.2112,131.46,131.4,0.04871545]
[1765468576059,6.8469,131.44,131.4,0.04871545]
[1765468576463,71.5659,131.46,131.4,0.04871545]
[1765468577167,6.8465,131.45,131.4,0.04871545]
[1765468577359,64.72,131.46,131.4,0.04871545]
[1765468578063,71.5659,131.46,131.4,0.04871545]
[1765468578454,71.5659,131.46,131.4,3.36871545]
[1765468578455,6.8462,131.45,131.4,3.36871545]
[1765468578864,106.4962,131.45,131.4,0.04871545]
[1765468579166,6.8478,131.42,131.4,0.04871545]
[1765468579360,64.7,131.41,131.33,3.22]
[1765468580058,106.5365,131.4,131.33,3.22]
[1765468580259,106.5365,131.4,131.35,0.05799708]
[1765468580260,0.0569894,131.38,131.35,0.05799708]
[1765468580459,64.7,131.37,131.35,0.05799708]
[1765468580657,6.8511,131.36,131.35,0.05799708]
[1765468580860,64.7,131.37,131.3,3.22]
[1765468580861,171.2658,131.37,131.3,3.22]
[1765468581059,106.5697,131.36,131.28,6.8546]
[1765468581261,6.8525,131.33,131.28,3.22]
[1765468581462,6.8525,131.33,131.26,6.8556]
[1765468581463,64.7,131.33,131.25,3.22]
[1765468581762,171.2963,131.33,131.25,3.22]
[1765468581966,0.04999216,131.3,131.28,0.04919333]
[1765468582468,6.90409216,131.3,131.28,0.04919333]
[1765468583169,0.04999216,131.3,131.28,0.04919333]
[1765468584170,0.04999216,131.3,131.28,3.26919333]
[1765468586066,0.04999216,131.3,131.28,0.04919333]
[1765468590674,0.04999216,131.3,131.28,3.26919333]
[1765468591673,0.04999216,131.3,131.28,0.04919333]
[1765468591877,0.04999216,131.3,131.28,3.26919333]
[1765468593582,0.04999216,131.3,131.28,0.04919333]
[1765468594978,6.90399216,131.3,131.28,0.04919333]
[1765468595875,0.04999216,131.3,131.28,0.04919333]
[1765468596571,6.90399216,131.3,131.28,0.04919333]
[1765468596973,6.8559,131.27,131.22,3.22]
[1765468597676,6.8561,131.26,131.21,10.0784]
[1765468597870,171.3395,131.3,131.22,3.22]
[1765468597871,64.72,131.3,131.22,3.22]
[1765468598076,0.0537405,131.25,131.24,3.22]
[1765468598278,0.05436877,131.26,131.24,3.22]
[1765468599072,0.05436877,131.26,131.23,22.96982533]
[1765468599270,0.05436877,131.26,131.23,26.18982533]
[1765468600067,0.05436877,131.26,131.24,3.22]
[1765468600678,76.81907561,131.34,131.25,3.22]
[1765468601276,6.8535,131.31,131.27,3.22]
[1765468601670,0.04848005,131.3,131.28,0.05593891]
[1765468602479,0.04848005,131.3,131.28,3.27593891]
[1765468603577,0.04848005,131.3,131.28,0.05593891]
[1765468604077,0.04848005,131.3,131.28,3.27593891]
[1765468606978,0.04848005,131.3,131.28,0.05593891]
[1765468608976,6.90258005,131.3,131.28,0.05593891]
[1765468611485,64.74,131.29,131.28,0.05593891]
[1765468611887,171.3712,131.29,131.22,3.23]
[1765468612490,6.8554,131.28,131.22,3.23]
[1765468612786,0.04891067,131.26,131.24,0.05199409]
[1765468613285,6.90501067,131.26,131.24,0.05199409]
[1765468613487,0.04891067,131.26,131.24,0.05199409]
[1765468614088,6.8565,131.25,131.24,0.05199409]
[1765468615290,0.04891067,131.26,131.24,0.05199409]
[1765468616807,6.90511067,131.26,131.24,0.05199409]
[1765468617002,106.6687,131.24,131.2,26.4593096]
[1765468617204,106.6687,131.24,131.21,3.23]
[1765468618003,6.8584,131.22,131.21,3.28346557]
[1765468618303,6.8584,131.22,131.21,0.05346557]
[1765468620798,6.8592,131.2,131.15,3.23]
[1765468621000,64.74,131.2,131.15,3.23]
[1765468621200,6.8599,131.19,131.15,3.23]
[1765468621406,6.8599,131.19,131.14,22.77340078]
[1765468621407,106.7072,131.19,131.14,26.00340078]
[1765468621702,0.05830964,131.18,131.15,3.28645129]
[1765468621907,0.05610863,131.18,131.15,0.05277964]
[1765468622498,6.91640863,131.18,131.15,0.05277964]
[1765468622894,6.8609,131.17,131.15,0.05277964]
[1765468625298,0.05610863,131.18,131.15,3.28277964]
[1765468625806,6.861,131.17,131.15,0.05277964]
[1765468628613,64.78,131.16,131.15,0.05277964]
[1765468630208,171.514,131.16,131.09,3.23]
[1765468631013,6.8629,131.13,131.09,3.23]
[1765468631314,0.05151166,131.12,131.1,3.28160187]
[1765468632108,0.05151166,131.12,131.11,3.23]
[1765468633705,0.00151166,131.12,131.11,3.23]
[1765468634706,0.00151166,131.12,131.1,0.05160187]
[1765468634911,6.86491166,131.12,131.1,0.05160187]
[1765468635802,6.86491166,131.12,131.1,3.28160187]
[1765468638614,6.86491166,131.12,131.1,3.24160187]
[1765468639714,6.86491166,131.12,131.03,171.6136]
[1765468639715,68.05687586,131.12,131.07,3.19]
[1765468639921,6.8654,131.08,131.05,3.19]
[1765468640318,3.2553642,131.1,131.05,3.19]
[1765468640517,6.8649,131.1,131.07,3.19]
[1765468640818,0.04999085,131.1,131.07,3.24119494]
[1765468641515,0.04999085,131.1,131.08,6.4453642]
[1765468641720,0.04999085,131.1,131.09,3.19]
[1765468642220,64.8,131.16,131.09,10.0549]
[1765468642414,3.2553642,131.15,131.11,3.19]
[1765468642814,6.8619,131.15,131.12,3.19]
[1765468643314,6.92054338,131.15,131.12,3.24287869]
[1765468644416,0.05864338,131.15,131.12,3.24287869]
[1765468645115,64.8,131.2,131.14,3.19]
[1765468645911,71.6594,131.2,131.14,3.19]
[1765468646120,0.04977569,131.18,131.16,0.05019396]
[1765468646320,0.04977569,131.18,131.16,3.24019396]
[1765468649411,6.8586,131.22,131.17,3.19]
[1765468650416,0.05046277,131.21,131.17,3.19]
[1765468651020,0.05046277,131.21,131.18,3.19]
[1765468652913,0.05046277,131.21,131.19,3.19]
[1765468653114,0.05046277,131.21,131.19,3.24641799]
[1765468653525,6.8569,131.25,131.2,3.19]
[1765468653728,106.6517,131.26,131.2,3.19]
[1765468654520,6.8577,131.23,131.22,0.05516708]
[1765468654829,0.05591172,131.24,131.21,0.0496902]
[1765468655028,0.0496372,131.24,131.21,0.04918162]
[1765468655822,6.8585,131.22,131.21,0.04918162]
[1765468662530,106.7074,131.19,131.13,3.19]
[1765468662731,106.7153,131.18,131.13,3.19]
[1765468663531,0.05564383,131.17,131.14,0.0483109]
[1765468663925,6.8618,131.15,131.14,0.0483109]
[1765468666629,10.11613565,131.15,131.14,0.0483109]
[1765468668427,10.17117948,131.17,131.14,3.2383109]
[1765468668737,3.30997948,131.17,131.14,3.2383109]
[1765468669935,6.8613,131.16,131.14,3.2383109]
[1765468670339,3.30997948,131.17,131.14,3.2383109]
[1765468671041,10.17077948,131.17,131.14,3.2383109]
[1765468671739,6.8613,131.16,131.14,3.2383109]
[1765468673440,0.05564383,131.17,131.14,3.2383109]
[1765468674642,6.91654383,131.17,131.14,3.2383109]
[1765468678139,0.05564383,131.17,131.14,3.2383109]
[1765468678442,0.05564383,131.17,131.15,3.41]
[1765468681942,6.91644383,131.17,131.14,3.4583109]
[1765468682144,0.05564383,131.17,131.14,3.4583109]
[1765468683445,106.6549,131.26,131.16,3.41]
[1765468683645,106.6519,131.26,131.18,3.41]
[1765468684141,6.857,131.25,131.19,3.41]
[1765468684346,171.4389,131.28,131.19,3.41]
[1765468684948,0.05658272,131.25,131.22,3.45954025]
[1765468686744,6.8573,131.24,131.22,0.04954025]
[1765468689953,71.6373,131.24,131.22,0.04954025]
[1765468694356,106.684,131.22,131.16,3.41]
[1765468694551,106.7016,131.2,131.13,3.41]
[1765468694758,5.08280413,131.19,131.13,3.41]
[1765468695144,6.8609,131.17,131.13,3.41]
[1765468695448,0.05630602,131.16,131.15,3.41]
[1765468698257,6.8599,131.19,131.15,3.41]
[1765468699258,0.05325833,131.18,131.15,3.41]
[1765468699854,0.05325833,131.18,131.15,10.2716]
[1765468700056,64.78,131.23,131.16,3.15]
[1765468700854,6.8582,131.22,131.17,3.15]
[1765468701147,0.05023212,131.21,131.19,3.15]
[1765468703661,6.8574,131.24,131.19,3.15]
[1765468703862,6.8574,131.24,131.2,3.15]
[1765468704062,6.8563,131.26,131.2,3.15]
[1765468704459,6.8563,131.26,131.21,3.24]
[1765468704653,6.8563,131.26,131.23,3.24]
[1765468707465,6.8567,131.25,131.23,3.24]
[1765468708268,6.8567,131.25,131.22,0.05162083]
[1765468708474,64.78,131.27,131.22,3.29162083]
[1765468709263,171.4244,131.27,131.22,0.05162083]
[1765468710374,6.8572,131.24,131.22,0.05162083]
[1765468711883,64.78,131.27,131.22,3.29162083]
[1765468712074,64.78,131.27,131.22,0.05162083]
[1765468712274,64.78,131.27,131.22,3.29162083]
[1765468712779,106.6504,131.26,131.22,0.05162083]
[1765468713186,106.6597,131.25,131.22,0.05162083]
[1765468713389,6.8576,131.23,131.22,0.05162083]
[1765468720087,6.8576,131.23,131.22,3.29162083]
[1765468720291,106.6188,131.3,131.23,3.24]
[1765468720489,171.3858,131.29,131.25,0.04928051]
[1765468720693,176.46128328,131.29,131.25,0.04928051]
[1765468721086,76.69028328,131.29,131.25,0.04928051]
[1765468721487,69.83548328,131.29,131.25,0.04928051]
[1765468721894,69.83548328,131.29,131.25,3.28928051]
[1765468722705,64.76,131.29,131.25,3.28928051]
[1765468724997,64.76,131.29,131.25,0.04928051]
[1765468725208,71.6147,131.29,131.25,0.04928051]
[1765468725507,171.3903,131.29,131.25,0.04928051]
[1765468725796,71.6148,131.29,131.25,0.04928051]
[1765468726388,64.76,131.29,131.25,0.04928051]
[1765468727204,6.8556,131.27,131.25,0.04928051]
[1765468733797,6.8556,131.27,131.25,3.24928051]
[1765468735903,6.8549,131.29,131.25,3.24928051]
[1765468737011,6.8539,131.31,131.26,3.2]
[1765468737205,6.8539,131.31,131.28,3.2]
[1765468737613,64.76,131.34,131.28,3.2]
[1765468737817,64.76,131.34,131.27,6.90934574]
[1765468737818,64.76,131.34,131.3,3.25183157]
[1765468739014,6.8529,131.32,131.3,3.25183157]
[1765468739310,171.3032,131.37,131.3,3.25183157]
[1765468741010,6.8514,131.35,131.3,3.25183157]
[1765468741214,106.5704,131.36,131.3,3.25183157]
[1765468741911,64.74,131.37,131.3,3.25183157]
[1765468742909,6.8514,131.35,131.3,3.25183157]
[1765468743310,171.3047,131.37,131.3,3.25183157]
[1765468744516,6.852,131.34,131.3,3.25183157]
[1765468744815,106.5728,131.36,131.3,3.25183157]
[1765468745018,6.8519,131.34,131.3,3.25183157]
[1765468745311,106.5728,131.36,131.3,3.25183157]
[1765468745617,106.5728,131.36,131.3,0.05183157]
[1765468747120,171.3047,131.37,131.3,0.05183157]
[1765468747311,6.8524,131.34,131.3,0.05183157]
[1765468747517,6.8524,131.34,131.3,3.25183157]
[1765468748114,171.3047,131.37,131.3,3.25183157]
[1765468748720,106.6031,131.32,131.23,3.2]
[1765468748920,64.72,131.31,131.23,3.2]
[1765468749425,6.8546,131.29,131.23,3.2]
[1765468749610,171.3332,131.31,131.23,3.2]
[1765468749815,0.05183157,131.28,131.26,0.05408989]
[1765468757024,72.4747266,131.27,131.22,22.61095587]
[1765468757321,72.4747266,131.27,131.21,3.2]
[1765468758120,0.05571089,131.25,131.23,0.05535171]
[1765468758332,6.91231089,131.25,131.23,0.05535171]
[1765468759519,0.05571089,131.25,131.23,3.21535171]
[1765468760228,0.05571089,131.25,131.23,0.05535171]
[1765468762028,6.8571,131.24,131.23,0.05535171]
[1765468766730,10.10681778,131.24,131.23,0.05535171]
[1765468772034,6.8571,131.24,131.23,0.05535171]
[1765468772533,10.10681778,131.24,131.23,0.05535171]
[1765468776446,6.8586,131.21,131.2,8e-05]
[1765468776638,10.10831778,131.21,131.2,8e-05]
[1765468777545,6.8586,131.21,131.2,8e-05]
[1765468779351,6.8607,131.17,131.16,3.16]
[1765468780155,109.96711778,131.18,131.16,9.46556248]
[1765468780359,106.7232,131.17,131.16,0.04947592]
[1765468780560,109.97291778,131.17,131.16,0.04947592]
[1765468780947,109.97291778,131.17,131.12,3.16]
[1765468781948,109.97291778,131.17,131.13,3.21126941]
[1765468782252,6.8627,131.14,131.13,26.48499898]
[1765468782462,6.8627,131.14,131.13,3.21126941]
[1765468783850,6.8627,131.14,131.13,6.46098719]
[1765468785055,6.8627,131.14,131.13,3.21126941]
[1765468786060,6.8627,131.14,131.13,25.76455629]
[1765468786860,6.9100638,131.16,131.13,25.76455629]
[1765468787558,0.0483638,131.16,131.13,25.76455629]
[1765468787758,3.29808158,131.16,131.13,25.76455629]
[1765468788160,6.8623,131.14,131.13,25.76455629]
[1765468788867,3.29808158,131.16,131.13,25.76455629]
[1765468789551,6.8623,131.14,131.13,25.76455629]
[1765468790563,10.11201778,131.14,131.13,0.05126941]
[1765468790765,6.8644,131.1,131.09,3.22]
[1765468793465,0.05246097,131.11,131.09,3.22]
[1765468793770,0.05246097,131.11,131.1,3.22]
[1765468794872,6.91636097,131.11,131.1,3.22]
[1765468795171,0.05246097,131.11,131.1,3.22]
[1765468795367,0.05246097,131.11,131.09,3.24971778]
[1765468795561,6.8644,131.1,131.09,3.22]
[1765468796670,6.8644,131.1,131.09,25.52850872]
[1765468797766,6.8644,131.1,131.09,22.30850872]
[1765468797964,6.8649,131.09,131.08,3.26866827]
[1765468799379,106.82736097,131.11,131.08,3.26866827]
[1765468799563,3.24971778,131.09,131.08,0.04866827]
[1765468800276,10.11461778,131.09,131.08,0.04866827]
[1765468800473,64.8,131.1,130.97,22.85]
[1765468800677,64.8,131.1,130.98,3.22]
[1765468802877,106.7664,131.12,130.98,3.22]
[1765468803081,9.42591595,131.18,131.0,3.22]
[1765468803273,7.06943696,131.18,131.13,109.9732]
[1765468803580,14.13887393,131.28,131.18,3.22]
[1765468803782,14.13887393,131.28,131.21,3.22]
[1765468803980,14.13887393,131.28,131.22,3.22]
[1765468804181,14.13887393,131.28,131.24,3.22]
[1765468804381,17.35887393,131.28,131.24,3.22]
[1765468804585,14.13887393,131.28,131.24,3.22]
[1765468804778,3.27675814,131.27,131.25,0.05326348]
[1765468804976,3.27675814,131.27,131.19,3.22]
[1765468805172,3.22,131.27,131.19,3.22]
[1765468805575,14.13887393,131.28,131.2,3.22]
[1765468805781,14.13887393,131.28,131.21,3.22]
[1765468806079,0.05667262,131.26,131.24,3.22]
[1765468806283,0.05410716,131.26,131.24,3.27842922]
[1765468807495,3.27410716,131.26,131.24,0.05842922]
[1765468807994,3.27410716,131.26,131.21,3.22]
[1765468808303,3.22,131.24,131.17,3.22]
[1765468808700,3.22,131.23,131.17,3.22]
[1765468808898,0.04878303,131.21,131.19,0.05377269]
[1765468809204,0.04878303,131.21,131.19,3.27377269]
[1765468812301,10.0747,131.29,131.2,3.22]
[1765468812608,109.8538,131.28,131.21,3.22]
[1765468812808,3.22,131.28,131.21,3.22]
[1765468813304,3.2702031,131.26,131.23,0.05853045]
[1765468813999,3.22,131.24,131.17,3.22]
[1765468814202,64.78,131.25,131.14,3.22]
[1765468814203,3.22,131.22,131.14,3.22]
[1765468814404,3.22,131.2,131.11,3.22]
[1765468815010,0.05858686,131.17,131.14,3.27208144]
[1765468817103,0.05858686,131.17,131.14,10.13418144]
[1765468817304,0.05858686,131.17,131.15,3.22]
[1765468819309,0.05858686,131.17,131.15,10.0814]
[1765468819513,0.05858686,131.17,131.16,3.22]
[1765468819813,0.05858686,131.17,131.14,0.05208144]
[1765468820014,3.26858686,131.17,131.14,0.05208144]
[1765468822723,10.12958686,131.17,131.14,0.05208144]
[1765468822925,3.21,131.16,131.06,106.8113]
[1765468823126,3.21,131.16,131.07,3.22]
[1765468823414,3.21,131.16,131.09,110.0053]
[1765468823615,6.86,131.19,131.11,3.22]
[1765468823818,3.21,131.23,131.16,106.73]
[1765468824221,3.26494675,131.21,131.18,0.05223234]
[1765468824416,3.26260368,131.21,131.18,0.04936599]
[1765468824815,3.21,131.2,131.18,0.04936599]
[1765468825217,3.21,131.2,131.11,3.22]
[1765468825422,3.21,131.18,131.09,68.0]
[1765468825925,10.0715,131.16,131.1,10.0841]
[1765468826219,3.21,131.15,131.1,6.8641]
[1765468826423,3.266226,131.14,131.12,0.05575826]
[1765468826821,3.266226,131.14,131.05,110.0348]
[1765468827015,3.21,131.14,131.05,110.0348]
[1765468827212,3.21,131.13,131.06,6.8661]
[1765468827427,3.21,131.13,131.05,110.0348]
[1765468827726,67.99,131.13,131.05,110.0348]
[1765468827930,67.99,131.13,131.08,0.05668294]
[1765468827931,0.04839791,131.1,131.08,0.05668294]
[1765468828127,0.04839791,131.1,131.08,10.14198294]
[1765468828319,0.04839791,131.1,131.09,3.22]
[1765468828824,0.04839791,131.1,131.08,6.92198294]
[1765468829029,0.04839791,131.1,131.08,10.14198294]
[1765468829825,118.84846966,131.19,131.12,6.8633]
[1765468829826,3.21,131.18,131.12,6.8633]
[1765468830824,0.05744903,131.16,131.14,0.0513128]
[1765468831125,3.21,131.15,131.14,0.0513128]
[1765468832236,3.26744903,131.16,131.14,0.0513128]
[1765468833225,10.12884903,131.16,131.14,0.0513128]
[1765468833422,3.21,131.15,131.07,3.22]
[1765468834219,118.83446966,131.21,131.09,3.22]
[1765468834420,0.05198749,131.16,131.14,0.04829738]
[1765468834626,0.05413189,131.16,131.14,0.04829738]
[1765468835026,3.26413189,131.16,131.14,0.04829738]
[1765468836227,0.05413189,131.16,131.14,0.04829738]
[1765468836423,3.26413189,131.16,131.14,0.04829738]
[1765468836828,0.05413189,131.16,131.14,0.04829738]
[1765468837434,3.26413189,131.16,131.14,0.04829738]
[1765468838036,10.12543189,131.16,131.14,0.04829738]
[1765468838229,3.21,131.15,131.07,3.22]
[1765468838431,3.21,131.13,131.07,3.22]
[1765468838635,3.21,131.13,131.04,174.8433]
[1765468839029,3.21,131.13,131.05,3.22]
[1765468839331,0.05277902,131.1,131.09,3.22]
[1765468839530,0.05760501,131.11,131.09,3.22]
[1765468839725,0.05605727,131.11,131.1,6.8641]
[1765468839930,3.26605727,131.11,131.09,0.05573005]
[1765468840239,3.26605727,131.11,131.09,6.92053005]
[1765468840537,3.26605727,131.11,131.09,0.05573005]
[1765468841531,3.26605727,131.11,131.01,132.72416966]
[1765468841532,3.21,131.09,130.97,23.45141977]
[1765468841832,3.21,131.09,130.99,3.22]
[1765468842140,3.21,131.09,131.02,3.22]
[1765468842436,0.04922091,131.07,131.04,6.92258848]
[1765468842640,0.04922091,131.07,131.04,0.05538848]
[1765468842641,3.25922091,131.07,131.04,0.05538848]
[1765468844337,0.04922091,131.07,131.04,3.27538848]
[1765468844935,0.04922091,131.07,131.06,3.22]
[1765468846033,10.0713,131.16,131.09,3.22]
[1765468846231,3.21,131.15,131.08,106.7953]
[1765468846431,3.21,131.15,131.07,171.6212]
[1765468847139,0.04827079,131.12,131.1,0.05464778]
[1765468848042,0.04827079,131.12,131.1,6.91904778]
[1765468848229,3.25827079,131.12,131.1,0.05464778]
[1765468849245,3.25827079,131.12,131.06,6.8662]
[1765468850239,3.25827079,131.12,131.08,0.04996161]
[1765468850435,3.25827079,131.12,131.08,3.20996161]
[1765468850835,0.04827079,131.12,131.08,3.20996161]
[1765468851031,0.04827079,131.12,131.1,3.16]
[1765468851236,0.04827079,131.12,131.08,0.04996161]
[1765468851437,0.04827079,131.12,131.08,3.20996161]
[1765468851648,0.04827079,131.12,131.09,3.16]
[1765468853142,3.29827079,131.12,131.08,0.04996161]
[1765468853337,3.25,131.09,131.01,3.16]
[1765468854349,0.04834353,131.06,131.01,3.16]
[1765468855147,0.04834353,131.06,131.01,10.0288]
[1765468855349,0.04834353,131.06,131.02,3.16]
[1765468855538,0.04834353,131.06,131.02,10.0284]
[1765468856051,0.04834353,131.06,131.02,3.16]
[1765468856749,6.91494353,131.06,131.02,3.16]
[1765468856951,0.04834353,131.06,131.02,3.16]
[1765468858444,0.04834353,131.06,131.02,10.0284]
[1765468858644,0.04834353,131.06,131.03,3.16]
[1765468859946,0.04834353,131.06,131.03,10.0279]
[1765468860247,3.29834353,131.06,130.99,110.026]
[1765468860440,3.29834353,131.06,130.99,68.0]
[1765468860645,3.29834353,131.06,131.0,3.16]
[1765468860842,10.16494353,131.06,131.0,3.16]
[1765468861043,3.29834353,131.06,131.0,3.16]
[1765468861240,0.04834353,131.06,131.0,3.16]
[1765468861443,0.04834353,131.06,131.0,10.0293]
[1765468861641,3.29834353,131.06,130.97,3.16]
[1765468861847,3.30748866,131.03,130.94,26.07125614]
[1765468862045,3.25,131.03,130.94,26.07125614]
[1765468862347,3.30813108,131.0,130.94,22.91125614]
[1765468862549,3.30813108,131.0,130.9,3.16]
[1765468862550,3.25,130.99,130.9,3.16]
[1765468862744,0.05571829,130.96,130.9,3.16]
[1765468863140,0.05571829,130.96,130.9,26.14928143]
[1765468863339,0.05571829,130.96,130.93,110.076]